fUST/lending_fUST_20250622
["ID","MTS","AMOUNT","RATE_DAILY","PERIOD"]
[366864078,1750525848093,-355.60070895,0.00022759,2]
[366864079,1750525848103,-986.03833007,0.00022866,8]
[366864080,1750525848113,-3000.0,0.000229,2]
[366864081,1750525848122,-3000.0,0.0002291,2]
[366864082,1750525848132,-3000.0,0.0002292,2]
[366864083,1750525848142,-3000.0,0.0002293,2]
[366864084,1750525848151,-3000.0,0.0002294,2]
[366864085,1750525848161,-500.0,0.00022941,2]
[366864086,1750525848171,-300.0,0.00022941,2]
[366864087,1750525848180,-500.0,0.00022941,2]
[366864088,1750525848190,-230.51303626,0.00022941,2]
[366864089,1750525848200,-500.0,0.00022941,2]
[366864090,1750525848209,-23828.27089503,0.00022941,2]
[366864091,1750525848219,-500.0,0.00022941,2]
[366864092,1750525848229,-500.0,0.00022941,2]
[366864093,1750525848239,-500.0,0.00022941,2]
[366864094,1750525848249,-500.0,0.00022941,2]
[366864095,1750525848259,-500.0,0.00022941,2]
[366864096,1750525848269,-500.0,0.00022941,2]
[366864097,1750525848278,-500.0,0.00022941,2]
[366864098,1750525848288,-207.4,0.00022941,2]
[366864099,1750525848297,-500.0,0.00022941,2]
[366864100,1750525848307,-500.0,0.00022941,2]
[366864101,1750525848377,-373.52180027,0.00022941,2]
[366864102,1750525848395,-3000.0,0.0002295,2]
[366864103,1750525848406,-3000.0,0.0002296,2]
[366864104,1750525848416,-3000.0,0.0002297,2]
[366864105,1750525848426,-514.31995088,0.00022973,2]
[366864106,1750525848436,-223.86930729,0.00022973,2]
[366864107,1750525848446,-500.0,0.00022973,2]
[366864108,1750525848456,-405.87798726,0.00022973,2]
[366864109,1750525848467,-500.0,0.00022973,2]
[366864110,1750525848476,-500.0,0.00022973,2]
[366864111,1750525848486,-3000.0,0.0002298,2]
[366864112,1750525848496,-3000.0,0.0002299,2]
[366864113,1750525848505,-3000.0,0.00023,2]
[366864114,1750525848515,-986.03833007,0.00023003,8]
[366864115,1750525848525,-3000.0,0.0002301,2]
[366864116,1750525848535,-500.0,0.00023012,9]
[366864117,1750525848545,-500.0,0.00023013,2]
[366864118,1750525848554,-173.0,0.00023014,7]
[366864119,1750525848564,-285.36,0.00023017,2]
[366864120,1750525848574,-3000.0,0.0002302,2]
[366864121,1750525848583,-3000.0,0.0002303,2]
[366864122,1750525848593,-3000.0,0.0002304,2]
[366864123,1750525848603,-3000.0,0.0002305,2]
[366864124,1750525848613,-168.0,0.00023055,2]
[366864125,1750525848623,-3000.0,0.0002306,2]
[366864126,1750525848632,-231.90581439,0.00023068,2]
[366864127,1750525848642,-1500.0,0.00023068,2]
[366864128,1750525848652,-698.37650219,0.00023068,2]
[366864129,1750525848662,-1500.0,0.00023068,2]
[366864130,1750525848672,-3000.0,0.0002307,2]
[366864131,1750525848682,-500.0,0.00023073,2]
[366864132,1750525848691,-261.05891665,0.00023073,2]
[366864133,1750525848701,-150.0,0.00023073,2]
[366864134,1750525848710,-497.22061474,0.00023073,2]
[366864135,1750525848720,-500.0,0.00023073,2]
[366864136,1750525848731,-500.0,0.00023073,2]
[366864137,1750525848740,-500.0,0.00023073,2]
[366864138,1750525848750,-500.0,0.00023073,2]
[366864139,1750525848760,-3000.0,0.0002308,2]
[366864140,1750525848770,-3000.0,0.0002309,2]
[366864141,1750525848780,-3000.0,0.000231,2]
[366864142,1750525848790,-3000.0,0.0002311,2]
[366864143,1750525848800,-3000.0,0.0002312,2]
[366864144,1750525848810,-3000.0,0.0002313,2]
[366864145,1750525848819,-3000.0,0.0002314,2]
[366864146,1750525848829,-986.03833007,0.00023141,8]
[366864147,1750525848839,-500.0,0.00023149,2]
[366864148,1750525848849,-3000.0,0.0002315,2]
[366864149,1750525848859,-3000.0,0.0002316,2]
[366864150,1750525848868,-3000.0,0.0002317,2]
[366864151,1750525848878,-3000.0,0.0002318,2]
[366864152,1750525848888,-3000.0,0.0002319,2]
[366864153,1750525848898,-3000.0,0.000232,2]
[366864154,1750525848908,-3000.0,0.0002321,2]
[366864155,1750525848917,-5336.050067,0.0002322,2]
[366864156,1750525848927,-500.0,0.0002325,2]
[366864157,1750525848937,-443.58519938,0.0002325,2]
[366864158,1750525848947,-3759.64,0.00023278,2]
[366864159,1750525848960,-986.03833007,0.00023279,8]
[366864160,1750525848969,-160.0,0.00023286,2]
[366864161,1750525848979,-3724.24,0.000233,7]
[366864162,1750525848989,-500.0,0.0002334,2]
[366864163,1750525849001,-406.36850021,0.0002334,2]
[366864164,1750525849011,-500.0,0.0002334,2]
[366864165,1750525849020,-600.0,0.0002334,2]
[366864166,1750525849032,-500.0,0.0002334,2]
[366864167,1750525849042,-500.0,0.0002334,2]
[366864168,1750525849052,-500.0,0.0002334,2]
[366864169,1750525849062,-1295.07,0.000234,7]
[366864170,1750525849072,-986.03833007,0.00023417,9]
[366864171,1750525849082,-168.0,0.00023444,2]
[366864172,1750525849093,-500.0,0.00023517,2]
[366864173,1750525849103,-1000.0,0.00023521,2]
[366864174,1750525849113,-1000.0,0.00023521,2]
[366864175,1750525849124,-744.7492345,0.00023521,2]
[366864176,1750525849134,-986.03833007,0.00023555,9]
[366864177,1750525849143,-500.0,0.0002356,10]
[366864178,1750525849153,-308.09881753,0.00023561,2]
[366864179,1750525849164,-505.39640988,0.00023561,2]
[366864180,1750525849174,-1500.0,0.00023616,2]
[366864181,1750525849184,-2000.0,0.00023616,2]
[366864182,1750525849194,-500.0,0.00023621,2]
[366864183,1750525849204,-300.0,0.00023621,2]
[366864184,1750525849213,-1000.0,0.00023621,2]
[366864185,1750525849223,-518.991895,0.00023621,2]
[366864186,1750525849233,-1000.0,0.00023621,2]
[366864187,1750525849243,-500.0,0.00023685,2]
[366864188,1750525849252,-279.45435886,0.00023685,2]
[366864189,1750525849263,-500.0,0.00023685,2]
[366864190,1750525849273,-151.0,0.00023685,2]
[366864191,1750525849283,-151.000001,0.00023685,2]
[366864192,1750525849293,-151.0,0.00023685,2]
[366864193,1750525849303,-151.0,0.00023685,2]
[366864194,1750525849313,-151.0,0.00023685,2]
[366864195,1750525849323,-151.0,0.00023685,2]
[366864196,1750525849332,-151.0,0.00023685,2]
[366864197,1750525849342,-151.0,0.00023685,2]
[366864198,1750525849352,-151.0,0.00023685,2]
[366864199,1750525849361,-500.0,0.00023685,2]
[366864200,1750525849371,-986.03833007,0.00023693,9]
[366864201,1750525849382,-500.0,0.00023712,2]
[366864202,1750525849392,-500.0,0.00023712,2]
[366864203,1750525849402,-151.0,0.00023712,2]
[366864204,1750525849412,-245.0,0.00023712,2]
[366864205,1750525849422,-151.00533235,0.00023712,2]
[366864206,1750525849432,-198.0,0.00023712,2]
[366864207,1750525849442,-198.0,0.00023712,2]
[366864208,1750525849451,-500.0,0.00023712,2]
[366864209,1750525849461,-231.33894044,0.0002374,2]
[366864210,1750525849471,-500.0,0.0002374,2]
[366864211,1750525849481,-199.97087402,0.0002374,2]
[366864212,1750525849491,-500.0,0.0002374,2]
[366864213,1750525849500,-500.0,0.00023761,2]
[366864214,1750525849510,-500.0,0.00023767,2]
[366864215,1750525849519,-500.0,0.00023795,2]
[366864216,1750525849529,-825.95521417,0.00023798,2]
[366864217,1750525849538,-420.0,0.00023817,2]
[366864218,1750525849549,-500.0,0.00023822,2]
[366864219,1750525849559,-986.03833007,0.00023831,10]
[366864220,1750525849569,-500.0,0.00023849,2]
[366864221,1750525849579,-500.0,0.00023877,2]
[366864222,1750525849589,-503.2918241,0.00023888,2]
[366864223,1750525849599,-1000.0,0.00023888,2]
[366864224,1750525849609,-1200.0,0.00023888,2]
[366864225,1750525849618,-1000.0,0.00023888,2]
[366864226,1750525849627,-1000.0,0.00023888,2]
[366864227,1750525849637,-500.0,0.00023904,2]
[366864228,1750525849647,-986.03833007,0.00023969,10]
[366864229,1750525849656,-424.93363889,0.00024,7]
[366864230,1750525849666,-523.9660634,0.00024,3]
[366864231,1750525849675,-523.9660634,0.00024,3]
[366864232,1750525849684,-150.0,0.00024021,2]
[366864233,1750525849694,-150.0,0.00024021,2]
[366864234,1750525849703,-150.0,0.00024021,2]
[366864235,1750525849713,-654.0,0.00024021,2]
[366864236,1750525849722,-2161.0,0.00024021,2]
[366864237,1750525849731,-406.0,0.00024021,2]
[366864238,1750525849741,-1500.0,0.00024068,2]
[366864239,1750525849751,-1500.0,0.00024068,2]
[366864240,1750525849761,-986.03833007,0.00024107,10]
[366864241,1750525849770,-500.0,0.00024164,2]
[366864242,1750525849779,-450.0,0.00024168,2]
[366864243,1750525849789,-1007.32710901,0.00024168,2]
[366864244,1750525849799,-1500.0,0.00024168,2]
[366864245,1750525849809,-500.0,0.00024231,2]
[366864246,1750525849819,-986.03833007,0.00024245,10]
[366864247,1750525849828,-215.0738,0.0002431,2]
[366864248,1750525849838,-986.03833007,0.00024383,11]
[366864249,1750525849847,-151.0,0.00024399,7]
[366864250,1750525849858,-1122.75,0.000244,2]
[366864251,1750525849868,-445.446918,0.00024401,4]
[366864252,1750525849877,-1800.0,0.00024436,2]
[366864253,1750525849887,-1500.0,0.00024436,2]
[366864254,1750525849896,-1500.0,0.00024436,2]
[366864255,1750525849905,-1500.0,0.00024436,2]
[366864256,1750525849915,-3724.24,0.000245,7]
[366864257,1750525849925,-986.03833007,0.00024521,11]
[366864258,1750525849999,-500.0,0.00024608,2]
[366864259,1750525850009,-160.0,0.00024656,2]
[366864260,1750525850019,-401.3106403,0.00024658,7]
[366864261,1750525850029,-1000.0,0.00024658,2]
[366864262,1750525850039,-1000.0,0.00024658,2]
[366864263,1750525850048,-472.01813702,0.00024658,2]
[366864264,1750525850058,-1000.0,0.00024658,2]
[366864265,1750525850068,-1000.0,0.00024658,2]
[366864266,1750525850077,-380.0,0.00024658,2]
[366864267,1750525850086,-500.0,0.00024658,2]
[366864268,1750525850096,-986.03833007,0.00024659,11]
[366864269,1750525850105,-539.798535,0.00024685,2]
[366864270,1750525850114,-1295.07,0.000247,7]
[366864271,1750525850124,-500.0,0.00024707,9]
[366864272,1750525850133,-500.0,0.00024707,9]
[366864273,1750525850143,-600.0,0.00024716,2]
[366864274,1750525850154,-2000.0,0.00024716,2]
[366864275,1750525850164,-1707.650139,0.0002472,5]
[366864276,1750525850173,-587.0,0.00024724,2]
[366864277,1750525850183,-1000.0,0.0002474,5]
[366864278,1750525850193,-1000.0,0.0002476,5]
[366864279,1750525850202,-150.0,0.00024773,2]
[366864280,1750525850212,-1000.0,0.0002478,5]
[366864281,1750525850221,-986.03833007,0.00024797,11]
[366864282,1750525850231,-2000.0,0.000248,2]
[366864283,1750525850240,-200.0,0.000248,2]
[366864284,1750525850250,-200.0,0.000248,2]
[366864285,1750525850260,-200.0,0.000248,2]
[366864286,1750525850274,-200.0,0.000248,2]
[366864287,1750525850284,-200.0,0.000248,2]
[366864288,1750525850293,-200.0,0.000248,2]
[366864289,1750525850303,-314.0,0.000248,2]
[366864290,1750525850313,-51538.06,0.000248,2]
[366864291,1750525850323,-410.13,0.000248,31]
[366864292,1750525850333,-410.13,0.000248,31]
[366864293,1750525850343,-410.13,0.000248,31]
[366864294,1750525850353,-410.13,0.000248,31]
[366864295,1750525850363,-410.13,0.000248,31]
[366864296,1750525850374,-410.13,0.000248,31]
[366864297,1750525850384,-410.13,0.000248,31]
[366864298,1750525850395,-410.13,0.000248,31]
[366864299,1750525850407,-410.13,0.000248,31]
[366864300,1750525850417,-410.13,0.000248,31]
[366864301,1750525850426,-410.13,0.000248,31]
[366864302,1750525850436,-410.13,0.000248,31]
[366864303,1750525850445,-410.13,0.000248,31]
[366864304,1750525850456,-410.13,0.000248,31]
[366864305,1750525850466,-410.13,0.000248,31]
[366864306,1750525850476,-410.13,0.000248,31]
[366864307,1750525850487,-1000.0,0.000248,5]
[366864308,1750525850496,-7278.26557065,0.000248,2]
[366864309,1750525850506,-104498.058989,0.000248,2]
[366864310,1750525850515,-5499.89784154,0.00024803,2]
[366864311,1750525850526,-200.0,0.0002481,11]
[366864312,1750525850536,-28150.13027336,0.00024813,7]
[366864313,1750525850546,-1000.0,0.0002482,5]
[366864314,1750525850555,-1000.0,0.0002484,5]
[366864315,1750525850566,-7278.26557058,0.00024847,2]
[366864316,1750525850575,-1000.0,0.0002486,5]
[366864317,1750525850585,-1000.0,0.0002488,5]
[366864318,1750525850596,-7278.26557058,0.00024894,2]
[366864319,1750525850605,-151.0,0.00024899,7]
[366864320,1750525850615,-200.0,0.00024899,2]
[366864321,1750525850624,-3801.79611645,0.000249,2]
[366864322,1750525850634,-10981.67649387,0.000249,2]
[366864323,1750525850643,-151.0,0.000249,3]
[366864324,1750525850655,-171.0,0.000249,3]
[366864325,1750525850665,-151.0,0.000249,3]
[366864326,1750525850675,-171.0,0.000249,3]
[366864327,1750525850684,-271.23252024,0.000249,3]
[366864328,1750525850694,-151.0,0.000249,3]
[366864329,1750525850703,-151.0,0.000249,3]
[366864330,1750525850712,-151.0,0.000249,3]
[366864331,1750525850723,-151.0,0.000249,3]
[366864332,1750525850733,-151.0,0.000249,3]
[366864333,1750525850742,-151.0,0.000249,3]
[366864334,1750525850751,-151.0,0.000249,3]
[366864335,1750525850761,-151.0,0.000249,3]
[366864336,1750525850771,-151.0,0.000249,3]
[366864337,1750525850781,-151.0,0.000249,3]
[366864338,1750525850790,-151.0,0.000249,3]
[366864339,1750525850799,-151.0,0.000249,3]
[366864340,1750525850809,-250.66227649,0.000249,3]
[366864341,1750525850818,-151.0,0.000249,7]
[366864342,1750525850827,-1000.0,0.000249,5]
[366864343,1750525850837,-151.0,0.000249,7]
[366864344,1750525850846,-240087.2438443,0.000249,2]
[366864345,1750525850946,-418.0000021,0.000249,2]
[366864346,1750525850962,-18989.40742475,0.000249,2]
[366864347,1750525850974,-30790.29173509,0.000249,2]
[366864348,1750525852786,-460.0,0.00021917,2]
[366864349,1750525852799,-460.0,0.00021917,2]
[366864350,1750525852812,-430.0,0.00021917,2]
[366864351,1750525852823,-19.38584339,0.000249,2]
[366864352,1750525852836,-732.95754763,0.000249,2]
[366864353,1750526100303,180.813297,0.00013699,2]
[366864355,1750526451385,-157.43,0.00019786,2]
[366864361,1750526850100,-412.28234324,0.00019886,2]
[366864362,1750526854485,-3301.84523615,0.00019886,2]
[366864363,1750526945087,-309.98879157,0.00019886,2]
[366864364,1750526952161,-975.88362904,0.00019886,2]
[366864365,1750526952181,-1997.84289726,0.0002,2]
[366864366,1750526952201,-791.72313881,0.0002,2]
[366864367,1750526952221,-243.02672459,0.00020087,2]
[366864368,1750526952243,-180.813297,0.00020187,2]
[366864369,1750526952264,-300.0,0.00020305,2]
[366864370,1750526952287,-300.0,0.00020305,2]
[366864371,1750526952307,-23725.8650948,0.00020306,2]
[366864372,1750526952328,-179.804983,0.00020406,2]
[366864373,1750526952348,-179.117,0.00020852,2]
[366864374,1750526952368,-8519.374937,0.00020853,2]
[366864375,1750526952395,-1033.00430529,0.000219,6]
[366864376,1750526952415,-776.18,0.00021907,3]
[366864377,1750526952437,-347.35197509,0.00021914,2]
[366864378,1750526952460,-500.0,0.00021914,2]
[366864379,1750526952480,-500.0,0.00021914,2]
[366864380,1750526952503,-500.0,0.00021914,2]
[366864381,1750526952523,-253.985202,0.00021914,2]
[366864382,1750526952547,-500.0,0.00021914,2]
[366864383,1750526952568,-500.0,0.00021914,2]
[366864384,1750526952591,-500.0,0.00021914,2]
[366864385,1750526952613,-500.0,0.00021914,2]
[366864386,1750526952636,-555.46710354,0.00021914,2]
[366864387,1750526952658,-500.0,0.00021914,2]
[366864388,1750526952681,-500.0,0.00021914,2]
[366864389,1750526952702,-500.0,0.00021914,2]
[366864390,1750526952723,-500.0,0.00021914,2]
[366864391,1750526952746,-500.0,0.00021914,2]
[366864392,1750526952768,-500.0,0.00021914,2]
[366864393,1750526952789,-500.0,0.00021914,2]
[366864394,1750526952813,-500.0,0.00021914,2]
[366864395,1750526952835,-500.0,0.00021914,2]
[366864396,1750526952857,-500.0,0.00021914,2]
[366864397,1750526952992,-300.0,0.00021914,2]
[366864398,1750526953015,-500.0,0.00021914,2]
[366864399,1750526953039,-500.0,0.00021914,2]
[366864400,1750526953060,-1000.0,0.00021916,2]
[366864401,1750526953081,-1000.0,0.00021916,2]
[366864402,1750526953102,-1003.90277886,0.00021916,2]
[366864403,1750526953121,-160.0,0.00021916,2]
[366864404,1750526953142,-502.89588017,0.00021917,2]
[366864405,1750526953162,-460.0,0.00021917,2]
[366864406,1750526953182,-470.87584311,0.00021917,2]
[366864407,1750526953202,-460.0,0.00021917,2]
[366864408,1750526953222,-409.4267127,0.00021917,2]
[366864409,1750526953243,-460.0,0.00021917,2]
[366864410,1750526953264,-477.31044376,0.00021917,2]
[366864411,1750526953283,-460.0,0.00021917,2]
[366864412,1750526953303,-460.0,0.00021917,2]
[366864413,1750526953323,-460.0,0.00021917,2]
[366864414,1750526953344,-464.10713367,0.00021917,2]
[366864415,1750526953364,-375.91144266,0.00021917,2]
[366864416,1750526953385,-466.31259971,0.00021917,2]
[366864417,1750526953407,-446.44679819,0.00021917,2]
[366864418,1750526953427,-460.0,0.00021917,2]
[366864419,1750526953447,-460.0,0.00021917,2]
[366864420,1750526953468,-200.0,0.00021917,2]
[366864421,1750526953488,-460.0,0.00021917,2]
[366864422,1750526953509,-464.75899356,0.00021917,2]
[366864423,1750526953529,-460.0,0.00021917,2]
[366864424,1750526953554,-469.61713268,0.00021917,2]
[366864425,1750526953574,-169.52141971,0.00021917,2]
[366864426,1750526953596,-460.0,0.00021917,2]
[366864427,1750526953618,-460.0,0.00021917,2]
[366864428,1750526953640,-460.0,0.00021917,2]
[366864429,1750526953662,-540.59032481,0.00021917,2]
[366864430,1750526953682,-460.0,0.00021917,2]
[366864431,1750526953701,-460.0,0.00021917,2]
[366864432,1750526953724,-460.0,0.00021917,2]
[366864433,1750526953743,-464.37624406,0.00021917,2]
[366864434,1750526953763,-360.4058756,0.00021917,2]
[366864435,1750526953783,-460.0,0.00021917,2]
[366864436,1750526953803,-460.0,0.00021917,2]
[366864437,1750526953823,-460.0,0.00021917,2]
[366864438,1750526953843,-460.0,0.00021917,2]
[366864439,1750526953862,-460.0,0.00021917,2]
[366864440,1750526953881,-460.0,0.00021917,2]
[366864441,1750526953901,-467.39272581,0.00021917,2]
[366864442,1750526953921,-463.58991103,0.00021917,2]
[366864443,1750526953941,-460.0,0.00021917,2]
[366864444,1750526953963,-460.0,0.00021917,2]
[366864445,1750526953983,-460.0,0.00021917,2]
[366864446,1750526954006,-420.98887117,0.00021917,2]
[366864447,1750526954028,-460.0,0.00021917,2]
[366864448,1750526954049,-460.0,0.00021917,2]
[366864449,1750526954069,-484.63105597,0.00021917,2]
[366864501,1750527032809,-2438.82764351,0.00021698,2]
[366864502,1750527032819,-480.427767,0.00021817,2]
[366864503,1750527032830,-998.57082865,0.000219,6]
[366864504,1750527032839,-300.0,0.00021916,2]
[366864505,1750527032849,-500.0,0.00021916,7]
[366864506,1750527032859,-527.7896414,0.00021916,2]
[366864507,1750527032869,-243.14638256,0.00021916,2]
[366864508,1750527032878,-500.0,0.00021916,2]
[366864509,1750527032888,-500.0,0.00021916,2]
[366864510,1750527032898,-129.12460729,0.00021916,2]
[366864525,1750527038385,-370.87539271,0.00021916,2]
[366864526,1750527038395,-500.0,0.00021916,2]
[366864528,1750527038405,-500.0,0.00021916,2]
[366864530,1750527038415,-500.0,0.00021916,2]
[366864532,1750527038434,-228.98324236,0.00021916,2]
[366864535,1750527038452,-271.01675764,0.00021916,2]
[366864537,1750527038463,-500.0,0.00021916,2]
[366864538,1750527038473,-500.0,0.00021916,2]
[366864540,1750527038483,-500.0,0.00021916,2]
[366864542,1750527038494,-500.0,0.00021916,2]
[366864544,1750527038504,-500.0,0.00021916,2]
[366864545,1750527038513,-500.0,0.00021916,2]
[366864547,1750527038524,-15.36894403,0.00021917,2]
[366864549,1750527038533,-503.67444599,0.00021917,2]
[366864551,1750527038543,-386.95386243,0.00021917,2]
[366864552,1750527038552,-460.0,0.00021917,2]
[366864554,1750527038562,-197.34770729,0.00021917,2]
[366864556,1750527038572,-462.63269159,0.00021917,2]
[366864558,1750527038583,-466.01175438,0.00021917,2]
[366864559,1750527038594,-460.0,0.00021917,2]
[366864561,1750527038603,-450.40029805,0.00021917,2]
[366864563,1750527038614,-460.0,0.00021917,2]
[366864565,1750527038626,-460.0,0.00021917,2]
[366864567,1750527038636,-479.33289174,0.00021917,2]
[366864568,1750527038645,-460.0,0.00021917,2]
[366864570,1750527038655,-460.0,0.00021917,2]
[366864572,1750527038666,-460.0,0.00021917,2]
[366864573,1750527038676,-213.09996486,0.00021917,2]
[366864575,1750527038687,-460.0,0.00021917,2]
[366864576,1750527038697,-460.0,0.00021917,2]
[366864577,1750527038707,-460.0,0.00021917,2]
[366864578,1750527038716,-460.0,0.00021917,2]
[366864579,1750527038726,-284.08919766,0.00021917,2]
[366864581,1750527038739,-175.91080234,0.00021917,2]
[366864582,1750527038749,-460.0,0.00021917,2]
[366864583,1750527038759,-460.0,0.00021917,2]
[366864584,1750527038768,-500.0,0.00021917,2]
[366864585,1750527038779,-500.0,0.00021917,2]
[366864586,1750527038788,-499.80380301,0.00021917,2]
[366864587,1750527038798,-460.0,0.00021917,2]
[366864588,1750527038808,-460.0,0.00021917,2]
[366864589,1750527038817,-469.35884901,0.00021917,2]
[366864590,1750527038826,-460.0,0.00021917,2]
[366864591,1750527038836,-406.19521633,0.00021917,2]
[366864592,1750527038846,-460.0,0.00021917,2]
[366864593,1750527038856,-460.0,0.00021917,2]
[366864594,1750527038866,-460.0,0.00021917,2]
[366864595,1750527038875,-460.0,0.00021917,2]
[366864596,1750527038885,-472.12959949,0.00021917,2]
[366864597,1750527038895,-460.0,0.00021917,2]
[366864598,1750527038904,-434.46604087,0.00021917,2]
[366864599,1750527038914,-500.0,0.00021917,2]
[366864600,1750527038924,-572.52,0.00021917,2]
[366864601,1750527038934,-374.15566583,0.00021917,2]
[366864602,1750527038943,-460.0,0.00021917,2]
[366864603,1750527038952,-465.18797623,0.00021917,2]
[366864604,1750527038961,-460.0,0.00021917,2]
[366864605,1750527038971,-460.0,0.00021917,2]
[366864606,1750527038981,-460.0,0.00021917,2]
[366864607,1750527038990,-460.0,0.00021917,2]
[366864608,1750527039000,-427.59896021,0.00021917,2]
[366864609,1750527039010,-460.0,0.00021917,2]
[366864610,1750527039019,-219.86070713,0.00021917,2]
[366864611,1750527039029,-460.0,0.00021917,2]
[366864612,1750527039039,-460.0,0.00021917,2]
[366864613,1750527039048,-460.0,0.00021917,2]
[366864614,1750527039058,-460.0,0.00021917,2]
[366864615,1750527039067,-460.0,0.00021917,2]
[366864616,1750527039077,-460.0,0.00021917,2]
[366864617,1750527039087,-904.3,0.00021917,2]
[366864618,1750527039097,-904.3,0.00021917,2]
[366864619,1750527039106,-904.3,0.00021917,2]
[366864620,1750527039116,-904.3,0.00021917,2]
[366864621,1750527039126,-904.3,0.00021917,2]
[366864622,1750527039135,-460.0,0.00021917,2]
[366864623,1750527039145,-460.0,0.00021917,2]
[366864624,1750527039155,-460.0,0.00021917,2]
[366864625,1750527039164,-460.0,0.00021917,2]
[366864626,1750527039175,-460.0,0.00021917,2]
[366864627,1750527039185,-467.20440443,0.00021917,2]
[366864628,1750527039195,-460.0,0.00021917,2]
[366864629,1750527039205,-460.0,0.00021917,2]
[366864630,1750527039330,-460.0,0.00021917,2]
[366864631,1750527039340,-460.0,0.00021917,2]
[366864632,1750527039350,-465.82981204,0.00021917,2]
[366864633,1750527039360,-460.0,0.00021917,2]
[366864634,1750527039370,-460.0,0.00021917,2]
[366864635,1750527039379,-460.0,0.00021917,2]
[366864636,1750527039389,-460.0,0.00021917,2]
[366864637,1750527039397,-284.34400682,0.00021917,2]
[366864638,1750527039407,-460.0,0.00021917,2]
[366864639,1750527039416,-460.0,0.00021917,2]
[366864640,1750527039426,-460.0,0.00021917,2]
[366864641,1750527039435,-460.0,0.00021917,2]
[366864642,1750527039445,-460.0,0.00021917,2]
[366864643,1750527039458,-471.70114188,0.00021917,2]
[366864644,1750527039468,-460.0,0.00021917,2]
[366864645,1750527039477,-460.0,0.00021917,2]
[366864646,1750527039487,-460.0,0.00021917,2]
[366864647,1750527039497,-460.0,0.00021917,2]
[366864648,1750527039506,-460.0,0.00021917,2]
[366864649,1750527039516,-460.0,0.00021917,2]
[366864650,1750527039525,-460.0,0.00021917,2]
[366864651,1750527039535,-460.0,0.00021917,2]
[366864652,1750527039544,-460.0,0.00021917,2]
[366864653,1750527039554,-460.0,0.00021917,2]
[366864654,1750527039564,-460.0,0.00021917,2]
[366864655,1750527039573,-460.0,0.00021917,2]
[366864656,1750527039586,-460.0,0.00021917,2]
[366864657,1750527039595,-460.0,0.00021917,2]
[366864658,1750527039605,-467.95719912,0.00021917,2]
[366864659,1750527039614,-436.85234483,0.00021917,2]
[366864660,1750527039624,-460.0,0.00021917,2]
[366864661,1750527039634,-460.0,0.00021917,2]
[366864662,1750527039644,-487.88807892,0.00021917,2]
[366864663,1750527039654,-460.0,0.00021917,2]
[366864664,1750527039665,-460.0,0.00021917,2]
[366864665,1750527039674,-460.0,0.00021917,2]
[366864666,1750527039684,-460.0,0.00021917,2]
[366864667,1750527039694,-576.92587019,0.00021917,2]
[366864668,1750527039703,-460.0,0.00021917,2]
[366864669,1750527039712,-460.0,0.00021917,2]
[366864670,1750527039722,-460.0,0.00021917,2]
[366864671,1750527039731,-769.86,0.00021917,2]